[Event "*** Titled Tuesday Blitz"]
[Site "Chess.com"]
[Date "2021.04.20"]
[Round "5"]
[White "davigator"]
[Black "champ2005"]
[Result "0-1"]
[WhiteElo "2432"]
[BlackElo "2984"]
[TimeControl "180+1"]
[EndTime "10:56:48 PDT"]
[Termination "champ2005 won by resignation"]

1. e4 {[%clk 0:03:00.9]} 1... g6 {[%clk 0:03:00.4]} 2. d4 {[%clk 0:03:00.1]}
2... Bg7 {[%clk 0:03:01.3]} 3. Nc3 {[%clk 0:02:59.8]} 3... d6 {[%clk 0:03:01.9]}
4. Be3 {[%clk 0:02:59]} 4... a6 {[%clk 0:03:02.3]} 5. Qd2 {[%clk 0:02:58.3]}
5... b5 {[%clk 0:03:02.5]} 6. O-O-O {[%clk 0:02:58.6]} 6... Bb7 {[%clk
0:03:02.9]} 7. f3 {[%clk 0:02:58.7]} 7... Nd7 {[%clk 0:03:01.9]} 8. Kb1 {[%clk
0:02:58.4]} 8... Nb6 {[%clk 0:03:01.1]} 9. Bd3 {[%clk 0:02:57.3]} 9... b4 {[%clk
0:03:00.5]} 10. Nce2 {[%clk 0:02:56.8]} 10... a5 {[%clk 0:03:00.9]} 11. Nc1
{[%clk 0:02:54.5]} 11... e6 {[%clk 0:02:42.4]} 12. Nge2 {[%clk 0:02:53.6]} 12...
h5 {[%clk 0:02:38.1]} 13. h3 {[%clk 0:02:52.6]} 13... h4 {[%clk 0:02:37.9]} 14.
Bg5 {[%clk 0:02:51]} 14... Ne7 {[%clk 0:02:36.7]} 15. Qe1 {[%clk 0:02:43.7]}
15... a4 {[%clk 0:02:09]} 16. Bxh4 {[%clk 0:02:39.7]} 16... a3 {[%clk
0:02:07.1]} 17. b3 {[%clk 0:02:37.1]} 17... Qd7 {[%clk 0:01:55]} 18. Bg5 {[%clk
0:02:35.4]} 18... Nc6 {[%clk 0:01:53.2]} 19. Be3 {[%clk 0:02:34]} 19... Qe7
{[%clk 0:01:20.3]} 20. Bb5 {[%clk 0:02:31.5]} 20... O-O {[%clk 0:01:20]} 21.
Bxc6 {[%clk 0:02:27.1]} 21... Bxc6 {[%clk 0:01:20.9]} 22. Qxb4 {[%clk
0:02:26.5]} 22... Rfb8 {[%clk 0:01:21.5]} 23. Qd2 {[%clk 0:02:22.2]} 23... Nc4
{[%clk 0:01:19.5]} 24. Qc3 {[%clk 0:02:20.5]} 24... Nxe3 {[%clk 0:00:59.1]} 25.
Qxe3 {[%clk 0:02:19.7]} 25... Bb5 {[%clk 0:00:59.7]} 26. Nc3 {[%clk 0:02:17.2]}
26... Be8 {[%clk 0:00:55.4]} 27. h4 {[%clk 0:02:07.6]} 27... c5 {[%clk
0:00:54.9]} 28. N1e2 {[%clk 0:02:06.5]} 28... cxd4 {[%clk 0:00:54.6]} 29. Nxd4
{[%clk 0:02:06.4]} 29... Rc8 {[%clk 0:00:48.7]} 30. Rd3 {[%clk 0:02:04.8]} 30...
Rc5 {[%clk 0:00:44.5]} 31. g4 {[%clk 0:01:58.9]} 31... Rac8 {[%clk 0:00:44]} 32.
h5 {[%clk 0:01:49.8]} 32... g5 {[%clk 0:00:44.3]} 33. h6 {[%clk 0:01:49.2]}
33... Be5 {[%clk 0:00:44.6]} 34. h7+ {[%clk 0:01:47.5]} 34... Kh8 {[%clk
0:00:44.5]} 35. Rh5 {[%clk 0:01:40.9]} 35... f6 {[%clk 0:00:40.6]} 36. Rh1
{[%clk 0:01:30.2]} 36... Bf7 {[%clk 0:00:25.8]} 37. Nce2 {[%clk 0:01:24.1]}
37... Qc7 {[%clk 0:00:22.1]} 38. c3 {[%clk 0:01:22.5]} 38... Qb7 {[%clk
0:00:19.1]} 39. Rc1 {[%clk 0:01:07.9]} 39... d5 {[%clk 0:00:19]} 40. Rc2 {[%clk
0:01:01.5]} 40... dxe4 {[%clk 0:00:17.6]} 41. Qxe4 {[%clk 0:00:58.1]} 41... Qc7
{[%clk 0:00:18.1]} 42. c4 {[%clk 0:00:47.8]} 42... Qe7 {[%clk 0:00:14.5]} 43.
Qe3 {[%clk 0:00:44.9]} 43... Bg6 {[%clk 0:00:14.5]} 44. Rcd2 {[%clk 0:00:43.4]}
44... Rd8 {[%clk 0:00:10.4]} 45. Kc1 {[%clk 0:00:38.8]} 45... Rcc8 {[%clk
0:00:09.3]} 46. Rc3 {[%clk 0:00:38]} 46... Rd7 {[%clk 0:00:09.8]} 47. Kd1 {[%clk
0:00:35.7]} 47... Rcd8 {[%clk 0:00:10.1]} 48. Ke1 {[%clk 0:00:34.2]} 48... Qxh7
{[%clk 0:00:08]} 49. Rc1 {[%clk 0:00:30.3]} 49... Kg8 {[%clk 0:00:06.3]} 50. Qg1
{[%clk 0:00:27.4]} 50... Qh4+ {[%clk 0:00:04.8]} 51. Kd1 {[%clk 0:00:23.4]}
51... Qh3 {[%clk 0:00:04.7]} 52. Rc3 {[%clk 0:00:21.3]} 52... Qh7 {[%clk
0:00:04.7]} 53. Re3 {[%clk 0:00:20.4]} 53... Bf7 {[%clk 0:00:04.9]} 54. Red3
{[%clk 0:00:18.4]} 54... Bg6 {[%clk 0:00:05.5]} 55. Rc3 {[%clk 0:00:18]} 55...
Bb1 {[%clk 0:00:05.6]} 56. Rc1 {[%clk 0:00:16.5]} 56... Bd3 {[%clk 0:00:04.8]}
57. Qe3 {[%clk 0:00:14.3]} 57... Bxe2+ {[%clk 0:00:04.8]} 58. Qxe2 {[%clk
0:00:12]} 58... Rxd4 {[%clk 0:00:05.1]} 59. Rc2 {[%clk 0:00:10.4]} 59... Qh1+
{[%clk 0:00:04.7]} 60. Qe1 {[%clk 0:00:10.5]} 60... Qxf3+ {[%clk 0:00:04.7]} 61.
Kc1 {[%clk 0:00:10.2]} 61... Qf4 {[%clk 0:00:04.7]} 62. Kd1 {[%clk 0:00:09.7]}
62... Rxd2+ {[%clk 0:00:05.2]} 63. Rxd2 {[%clk 0:00:09.6]} 63... Rxd2+ {[%clk
0:00:06.1]} 64. Qxd2 {[%clk 0:00:09.8]} 64... Qxd2+ {[%clk 0:00:07]} 65. Kxd2
{[%clk 0:00:10.1]} 65... f5 {[%clk 0:00:07.9]} 66. b4 {[%clk 0:00:09.4]} 66...
fxg4 {[%clk 0:00:08]} 67. Ke3 {[%clk 0:00:09.1]} 67... g3 {[%clk 0:00:08.3]} 68.
Kf3 {[%clk 0:00:09.2]} 68... g4+ {[%clk 0:00:08.6]} 69. Kg2 {[%clk 0:00:08.7]}
69... Kf7 {[%clk 0:00:09.1]} 70. c5 {[%clk 0:00:09.1]} 70... Ke7 {[%clk
0:00:09.6]} 71. b5 {[%clk 0:00:09.6]} 71... Kd7 {[%clk 0:00:10.2]} 72. Kg1
{[%clk 0:00:09.7]} 72... Kc7 {[%clk 0:00:10.6]} 73. Kg2 {[%clk 0:00:10.1]} 73...
Bf4 {[%clk 0:00:11.3]} 74. Kg1 {[%clk 0:00:09.8]} 74... e5 {[%clk 0:00:11.9]}
75. Kg2 {[%clk 0:00:10.7]} 75... e4 {[%clk 0:00:12.5]} 76. Kf1 {[%clk
0:00:10.9]} 76... e3 {[%clk 0:00:12.7]} 77. b6+ {[%clk 0:00:09.7]} 77... Kc6
{[%clk 0:00:13.3]} 78. Ke1 {[%clk 0:00:07.2]} 78... g2 {[%clk 0:00:13.2]} 79.
Ke2 {[%clk 0:00:07.3]} 79... g1=Q {[%clk 0:00:14.1]} 80. b7 {[%clk 0:00:06.3]}
80... Qf2+ {[%clk 0:00:14.6]} 81. Kd3 {[%clk 0:00:06.2]} 81... Qd2+ {[%clk
0:00:15.2]} 82. Ke4 {[%clk 0:00:06.4]} 82... Kxb7 {[%clk 0:00:14.9]} 83. Kxf4
{[%clk 0:00:06.3]} 83... e2+ {[%clk 0:00:15.1]} 84. Kxg4 {[%clk 0:00:06.5]}
84... e1=Q {[%clk 0:00:16]} 85. Kf5 {[%clk 0:00:06.6]} 85... Kc8 {[%clk
0:00:16.9]} 86. c6 {[%clk 0:00:05.9]} 86... Qdf2+ {[%clk 0:00:17.8]} 0-1

[Event "*** Titled Tuesday Blitz"]
[Site "Chess.com"]
[Date "2021.04.20"]
[Round "5"]
[White "platy3"]
[Black "GM_LOADING"]
[Result "1/2-1/2"]
[WhiteElo "2843"]
[BlackElo "2549"]
[TimeControl "180+1"]
[EndTime "10:57:06 PDT"]
[Termination "Game drawn - insufficient material"]

1. e4 {[%clk 0:03:00.9]} 1... e5 {[%clk 0:03:00]} 2. Nf3 {[%clk 0:03:01]} 2...
Nc6 {[%clk 0:03:00.4]} 3. Bc4 {[%clk 0:03:01.5]} 3... Nf6 {[%clk 0:03:00.4]} 4.
Ng5 {[%clk 0:03:01]} 4... d5 {[%clk 0:03:00.3]} 5. exd5 {[%clk 0:03:01.4]} 5...
Na5 {[%clk 0:03:00.9]} 6. Bb5+ {[%clk 0:03:01.9]} 6... c6 {[%clk 0:03:01.5]} 7.
dxc6 {[%clk 0:03:02.8]} 7... bxc6 {[%clk 0:03:02.4]} 8. Bd3 {[%clk 0:03:03.3]}
8... Nd5 {[%clk 0:02:57.7]} 9. Nf3 {[%clk 0:03:02.2]} 9... Bd6 {[%clk
0:02:57.7]} 10. O-O {[%clk 0:03:01.4]} 10... O-O {[%clk 0:02:57.8]} 11. Re1
{[%clk 0:03:00.9]} 11... Qc7 {[%clk 0:02:57.4]} 12. c4 {[%clk 0:02:09.5]} 12...
Nf4 {[%clk 0:02:52.6]} 13. Bf1 {[%clk 0:02:08.2]} 13... Bg4 {[%clk 0:02:34.9]}
14. d3 {[%clk 0:02:05.8]} 14... Ne6 {[%clk 0:02:09.5]} 15. h3 {[%clk 0:02:04.5]}
15... Bh5 {[%clk 0:02:09.7]} 16. Nc3 {[%clk 0:02:01.3]} 16... f5 {[%clk
0:01:53.5]} 17. Be2 {[%clk 0:01:43.1]} 17... Bg6 {[%clk 0:01:17.9]} 18. Nh4
{[%clk 0:01:34.2]} 18... Rad8 {[%clk 0:01:11.5]} 19. Nxg6 {[%clk 0:01:32.4]}
19... hxg6 {[%clk 0:01:12.4]} 20. Qa4 {[%clk 0:01:22.9]} 20... Nb7 {[%clk
0:01:06]} 21. b4 {[%clk 0:01:18.9]} 21... e4 {[%clk 0:00:34.8]} 22. c5 {[%clk
0:01:18.3]} 22... Be5 {[%clk 0:00:26]} 23. Qb3 {[%clk 0:01:16.9]} 23... Kh7
{[%clk 0:00:25.7]} 24. Qxe6 {[%clk 0:00:47.3]} 24... Bxc3 {[%clk 0:00:25.6]} 25.
Bg5 {[%clk 0:00:48]} 25... Rde8 {[%clk 0:00:20.9]} 26. Qc4 {[%clk 0:00:48.1]}
26... Bxe1 {[%clk 0:00:16.2]} 27. Rxe1 {[%clk 0:00:48.4]} 27... exd3 {[%clk
0:00:16.3]} 28. Qxd3 {[%clk 0:00:49.3]} 28... a5 {[%clk 0:00:13]} 29. a3 {[%clk
0:00:36.7]} 29... axb4 {[%clk 0:00:13.2]} 30. axb4 {[%clk 0:00:37.6]} 30... Re4
{[%clk 0:00:13.2]} 31. Rb1 {[%clk 0:00:38]} 31... Rfe8 {[%clk 0:00:06.9]} 32.
Bf1 {[%clk 0:00:33.2]} 32... Re1 {[%clk 0:00:04.9]} 33. Bd2 {[%clk 0:00:29.2]}
33... Rxb1 {[%clk 0:00:04.7]} 34. Qxb1 {[%clk 0:00:30.1]} 34... Qe5 {[%clk
0:00:04.2]} 35. Qa2 {[%clk 0:00:27.4]} 35... Rd8 {[%clk 0:00:03.6]} 36. Bg5
{[%clk 0:00:23.4]} 36... Rd1 {[%clk 0:00:03.5]} 37. g3 {[%clk 0:00:18.4]} 37...
Qe1 {[%clk 0:00:03.4]} 38. Qc4 {[%clk 0:00:18.8]} 38... Nd8 {[%clk 0:00:02.8]}
39. Kg2 {[%clk 0:00:16.9]} 39... Ne6 {[%clk 0:00:03]} 40. Be3 {[%clk 0:00:17.4]}
40... f4 {[%clk 0:00:02.1]} 41. gxf4 {[%clk 0:00:17.5]} 41... Nc7 {[%clk
0:00:02.8]} 42. Qe2 {[%clk 0:00:14.7]} 42... Nd5 {[%clk 0:00:02.3]} 43. Qxe1
{[%clk 0:00:07.1]} 43... Rxe1 {[%clk 0:00:03.2]} 44. b5 {[%clk 0:00:07.9]} 44...
Nxe3+ {[%clk 0:00:03.4]} 45. fxe3 {[%clk 0:00:08.1]} 45... cxb5 {[%clk
0:00:04.1]} 46. Kf2 {[%clk 0:00:07.5]} 46... Rc1 {[%clk 0:00:04.4]} 47. Bxb5
{[%clk 0:00:07.3]} 47... Rxc5 {[%clk 0:00:05.1]} 48. Be2 {[%clk 0:00:07.9]}
48... g5 {[%clk 0:00:05.3]} 49. fxg5 {[%clk 0:00:04.7]} 49... Rxg5 {[%clk
0:00:06.2]} 50. Bg4 {[%clk 0:00:05.2]} 50... Kg6 {[%clk 0:00:06.5]} 51. Kf3
{[%clk 0:00:05.7]} 51... Kf6 {[%clk 0:00:07]} 52. Kf4 {[%clk 0:00:06.1]} 52...
Ra5 {[%clk 0:00:07.6]} 53. Kf3 {[%clk 0:00:05.8]} 53... Ke5 {[%clk 0:00:07.4]}
54. Bc8 {[%clk 0:00:05.7]} 54... Ra3 {[%clk 0:00:07.7]} 55. Bg4 {[%clk
0:00:05.9]} 55... Kf6 {[%clk 0:00:08.2]} 56. Bc8 {[%clk 0:00:06.1]} 56... Kg5
{[%clk 0:00:08.6]} 57. Bg4 {[%clk 0:00:06.7]} 57... Kf6 {[%clk 0:00:06.8]} 58.
Bc8 {[%clk 0:00:06.7]} 58... Ke5 {[%clk 0:00:07.3]} 59. Bg4 {[%clk 0:00:07.3]}
59... Kd5 {[%clk 0:00:07.8]} 60. Bf5 {[%clk 0:00:06.9]} 60... Kc4 {[%clk
0:00:07.5]} 61. Kf4 {[%clk 0:00:06.7]} 61... Kd5 {[%clk 0:00:06.5]} 62. Be4+
{[%clk 0:00:04.8]} 62... Ke6 {[%clk 0:00:06.5]} 63. Bf5+ {[%clk 0:00:05.3]}
63... Kf6 {[%clk 0:00:06.3]} 64. Bg4 {[%clk 0:00:06.2]} 64... g5+ {[%clk
0:00:06.3]} 65. Kf3 {[%clk 0:00:06.5]} 65... Ke5 {[%clk 0:00:06.7]} 66. Bc8
{[%clk 0:00:06.7]} 66... Ra1 {[%clk 0:00:07.4]} 67. Bg4 {[%clk 0:00:06.9]} 67...
Rf1+ {[%clk 0:00:06.7]} 68. Ke2 {[%clk 0:00:07.2]} 68... Rh1 {[%clk 0:00:06.7]}
69. Kf3 {[%clk 0:00:07.2]} 69... Rf1+ {[%clk 0:00:07]} 70. Ke2 {[%clk
0:00:07.5]} 70... Rf8 {[%clk 0:00:07.6]} 71. Kd3 {[%clk 0:00:07.8]} 71... Kd5
{[%clk 0:00:06]} 72. Bh5 {[%clk 0:00:07.1]} 72... Ke5 {[%clk 0:00:04.9]} 73. Bg4
{[%clk 0:00:07.3]} 73... Rd8+ {[%clk 0:00:05]} 74. Ke2 {[%clk 0:00:07.5]} 74...
Ke4 {[%clk 0:00:05.5]} 75. Bf3+ {[%clk 0:00:08]} 75... Ke5 {[%clk 0:00:05.9]}
76. Bg4 {[%clk 0:00:08.7]} 76... Kd5 {[%clk 0:00:04.8]} 77. Kf3 {[%clk
0:00:08.8]} 77... Rf8+ {[%clk 0:00:04.7]} 78. Ke2 {[%clk 0:00:09.4]} 78... Kc4
{[%clk 0:00:05.2]} 79. Be6+ {[%clk 0:00:08.7]} 79... Kc3 {[%clk 0:00:05.5]} 80.
Bg4 {[%clk 0:00:08.9]} 80... Rf6 {[%clk 0:00:05.6]} 81. Bd7 {[%clk 0:00:08.2]}
81... Rd6 {[%clk 0:00:05.7]} 82. Bg4 {[%clk 0:00:08.2]} 82... Rd2+ {[%clk
0:00:06.2]} 83. Kf3 {[%clk 0:00:08.8]} 83... Kd3 {[%clk 0:00:06.3]} 84. Bf5+
{[%clk 0:00:09.2]} 84... Kc4 {[%clk 0:00:06.9]} 85. Kg4 {[%clk 0:00:08.2]} 85...
Rg2+ {[%clk 0:00:07]} 86. Kh5 {[%clk 0:00:08.6]} 86... Kd5 {[%clk 0:00:05.6]}
87. Bg4 {[%clk 0:00:07.8]} 87... Ke4 {[%clk 0:00:05.1]} 88. Kxg5 {[%clk
0:00:08]} 88... Kxe3 {[%clk 0:00:05.7]} 89. h4 {[%clk 0:00:08.7]} 89... Rh2
{[%clk 0:00:05.9]} 90. h5 {[%clk 0:00:08.9]} 90... Rxh5+ {[%clk 0:00:06.1]} 91.
Kxh5 {[%clk 0:00:09.1]} 1/2-1/2

[Event "*** Titled Tuesday Blitz"]
[Site "Chess.com"]
[Date "2021.04.20"]
[Round "5"]
[White "fastestmindalive"]
[Black "amintabatabaei"]
[Result "0-1"]
[WhiteElo "2766"]
[BlackElo "2992"]
[TimeControl "180+1"]
[EndTime "10:58:05 PDT"]
[Termination "amintabatabaei won by resignation"]

1. e4 {[%clk 0:03:00.9]} 1... c5 {[%clk 0:02:59]} 2. Nc3 {[%clk 0:02:59]} 2...
Nc6 {[%clk 0:02:58.9]} 3. f4 {[%clk 0:02:56.5]} 3... g6 {[%clk 0:02:59.4]} 4.
Nf3 {[%clk 0:02:56.6]} 4... Bg7 {[%clk 0:03:00.1]} 5. Bb5 {[%clk 0:02:57.3]}
5... Nd4 {[%clk 0:03:00.7]} 6. a4 {[%clk 0:02:58]} 6... e6 {[%clk 0:02:52.2]} 7.
e5 {[%clk 0:02:58]} 7... a6 {[%clk 0:02:50.6]} 8. Bc4 {[%clk 0:02:57.9]} 8... d5
{[%clk 0:02:46.7]} 9. exd6 {[%clk 0:02:58.8]} 9... Qxd6 {[%clk 0:02:46.2]} 10.
d3 {[%clk 0:02:59.5]} 10... Ne7 {[%clk 0:02:43.2]} 11. Ne4 {[%clk 0:02:59.8]}
11... Qc7 {[%clk 0:02:43.3]} 12. c3 {[%clk 0:03:00.3]} 12... Nxf3+ {[%clk
0:02:41.6]} 13. Qxf3 {[%clk 0:03:01.2]} 13... O-O {[%clk 0:02:42.2]} 14. Be3
{[%clk 0:03:01.4]} 14... b6 {[%clk 0:02:32.7]} 15. Nxc5 {[%clk 0:03:01.3]} 15...
Nd5 {[%clk 0:02:13.1]} 16. Ne4 {[%clk 0:02:20.3]} 16... Nxe3 {[%clk 0:02:09.3]}
17. Qxe3 {[%clk 0:02:20.1]} 17... Bb7 {[%clk 0:02:07.2]} 18. O-O {[%clk
0:01:59.8]} 18... Rfd8 {[%clk 0:02:07.3]} 19. Bb3 {[%clk 0:01:57.8]} 19... b5
{[%clk 0:02:03.7]} 20. axb5 {[%clk 0:01:56]} 20... axb5 {[%clk 0:02:04.6]} 21.
Rxa8 {[%clk 0:01:54.9]} 21... Bxa8 {[%clk 0:01:54]} 22. Bd1 {[%clk 0:01:54.1]}
22... b4 {[%clk 0:01:52.4]} 23. d4 {[%clk 0:01:46.3]} 23... bxc3 {[%clk
0:01:48.5]} 24. bxc3 {[%clk 0:01:46.1]} 24... Bxe4 {[%clk 0:01:46.2]} 25. Qxe4
{[%clk 0:01:44]} 25... Qxc3 {[%clk 0:01:46.9]} 26. Kh1 {[%clk 0:01:30.3]} 26...
Rxd4 {[%clk 0:01:35.8]} 27. Qa8+ {[%clk 0:01:28.2]} 27... Bf8 {[%clk 0:01:36.3]}
28. Be2 {[%clk 0:01:09.7]} 28... h5 {[%clk 0:01:16.1]} 29. Qf3 {[%clk
0:01:03.7]} 29... Qb2 {[%clk 0:00:52.9]} 30. Bd3 {[%clk 0:00:47.8]} 30... Qd2
{[%clk 0:00:52.7]} 31. Be4 {[%clk 0:00:45.3]} 31... Bd6 {[%clk 0:00:49.3]} 32.
g3 {[%clk 0:00:35.9]} 32... Qb4 {[%clk 0:00:49.3]} 33. Bc6 {[%clk 0:00:30.2]}
33... Rd2 {[%clk 0:00:45.1]} 34. Rf2 {[%clk 0:00:25.2]} 34... Qb1+ {[%clk
0:00:42]} 35. Kg2 {[%clk 0:00:23.6]} 35... Rd1 {[%clk 0:00:41.5]} 36. Be4 {[%clk
0:00:10.7]} 36... Qb6 {[%clk 0:00:34.1]} 37. Qxd1 {[%clk 0:00:09.5]} 37... Bc5
{[%clk 0:00:28.9]} 38. Re2 {[%clk 0:00:09.7]} 38... Bd4 {[%clk 0:00:26.4]} 39.
Qd3 {[%clk 0:00:09.6]} 39... Kg7 {[%clk 0:00:26.9]} 40. Bf3 {[%clk 0:00:10]}
40... Bf6 {[%clk 0:00:23.5]} 41. Qd7 {[%clk 0:00:09.4]} 41... Qa6 {[%clk
0:00:17]} 42. Qb7 {[%clk 0:00:09.1]} 42... Qc4 {[%clk 0:00:16.5]} 43. Qe4 {[%clk
0:00:08.6]} 43... Qc5 {[%clk 0:00:16.1]} 44. Qe3 {[%clk 0:00:08.5]} 44... Qa5
{[%clk 0:00:15.8]} 45. Qd3 {[%clk 0:00:08.4]} 45... Qb6 {[%clk 0:00:15.6]} 46.
Qe3 {[%clk 0:00:08.5]} 46... Qa5 {[%clk 0:00:15.8]} 47. Qd2 {[%clk 0:00:09.2]}
47... Qb6 {[%clk 0:00:15.7]} 48. Qc2 {[%clk 0:00:09.8]} 48... Bd4 {[%clk
0:00:14.7]} 49. h3 {[%clk 0:00:10]} 49... Qa5 {[%clk 0:00:14.3]} 50. Qd3 {[%clk
0:00:10.1]} 50... Qa1 {[%clk 0:00:14.2]} 51. Rf2 {[%clk 0:00:04.1]} 51... Bxf2
{[%clk 0:00:09.8]} 52. Kxf2 {[%clk 0:00:05]} 52... Qb2+ {[%clk 0:00:09]} 53. Qe2
{[%clk 0:00:05.6]} 53... Qd4+ {[%clk 0:00:09.1]} 54. Kg2 {[%clk 0:00:05.1]}
54... Qb6 {[%clk 0:00:08.6]} 55. Qe5+ {[%clk 0:00:05.1]} 55... Kg8 {[%clk
0:00:09.1]} 56. Qe2 {[%clk 0:00:04.8]} 56... Qd4 {[%clk 0:00:08.9]} 57. Qf2
{[%clk 0:00:04.5]} 57... Qb4 {[%clk 0:00:08.3]} 58. Qc2 {[%clk 0:00:04.4]} 58...
h4 {[%clk 0:00:04.8]} 59. Qc8+ {[%clk 0:00:04.4]} 59... Kg7 {[%clk 0:00:05.1]}
60. Qc2 {[%clk 0:00:03.9]} 60... hxg3 {[%clk 0:00:05]} 61. Kxg3 {[%clk
0:00:04.8]} 61... Qd4 {[%clk 0:00:04.8]} 62. Qe2 {[%clk 0:00:04.6]} 62... Qg1+
{[%clk 0:00:04.9]} 63. Qg2 {[%clk 0:00:04.5]} 63... Qc1 {[%clk 0:00:05.5]} 64.
Qf2 {[%clk 0:00:05.1]} 64... Qa1 {[%clk 0:00:04.6]} 65. Qe3 {[%clk 0:00:05]}
65... Qa4 {[%clk 0:00:04.3]} 66. Qe5+ {[%clk 0:00:04.9]} 66... Kg8 {[%clk
0:00:05]} 67. h4 {[%clk 0:00:05.5]} 67... Qc2 {[%clk 0:00:04.6]} 68. h5 {[%clk
0:00:04.4]} 68... gxh5 {[%clk 0:00:05.5]} 69. Bxh5 {[%clk 0:00:04.3]} 69... Qc1
{[%clk 0:00:04.3]} 70. Bf3 {[%clk 0:00:03.7]} 70... Qg1+ {[%clk 0:00:03.9]} 71.
Bg2 {[%clk 0:00:04.3]} 71... Qc1 {[%clk 0:00:03.9]} 72. Qg5+ {[%clk 0:00:04.5]}
72... Kf8 {[%clk 0:00:03.7]} 73. Qd8+ {[%clk 0:00:05]} 73... Kg7 {[%clk
0:00:04.1]} 74. Qd4+ {[%clk 0:00:05.9]} 74... Kg8 {[%clk 0:00:04.4]} 75. Bf3
{[%clk 0:00:05.8]} 75... Qe1+ {[%clk 0:00:04.6]} 76. Kg2 {[%clk 0:00:06.2]}
76... Qh4 {[%clk 0:00:04.7]} 77. Qe5 {[%clk 0:00:05.9]} 77... Kf8 {[%clk
0:00:03.5]} 78. Qb8+ {[%clk 0:00:05.9]} 78... Kg7 {[%clk 0:00:03.8]} 79. Qe5+
{[%clk 0:00:06.8]} 79... Kf8 {[%clk 0:00:04.2]} 80. Qd6+ {[%clk 0:00:06.1]}
80... Kg7 {[%clk 0:00:04.6]} 81. Qd4+ {[%clk 0:00:06.1]} 81... Kf8 {[%clk
0:00:04.8]} 82. Qe3 {[%clk 0:00:07]} 82... Kg7 {[%clk 0:00:05.1]} 83. Be2 {[%clk
0:00:06.8]} 83... Kf8 {[%clk 0:00:05.2]} 84. Bd3 {[%clk 0:00:06.3]} 84... Qf6
{[%clk 0:00:05]} 85. Qf3 {[%clk 0:00:06.6]} 85... Qg7+ {[%clk 0:00:05.1]} 86.
Qg3 {[%clk 0:00:05.7]} 86... Qb2+ {[%clk 0:00:05.6]} 87. Qf2 {[%clk 0:00:05.5]}
87... Qg7+ {[%clk 0:00:05.6]} 88. Qg3 {[%clk 0:00:05.6]} 88... Qb2+ {[%clk
0:00:05.8]} 89. Kf3 {[%clk 0:00:06.3]} 89... Qc3 {[%clk 0:00:05.8]} 90. Kg4
{[%clk 0:00:05.7]} 90... Qg7+ {[%clk 0:00:04.3]} 91. Kh3 {[%clk 0:00:06.3]}
91... Qh8+ {[%clk 0:00:04.8]} 92. Qh4 {[%clk 0:00:03.7]} 92... Qd4 {[%clk
0:00:04.7]} 93. Be2 {[%clk 0:00:02.3]} 93... Qe3+ {[%clk 0:00:04.3]} 94. Qg3
{[%clk 0:00:01.6]} 94... Qxe2 {[%clk 0:00:04.7]} 95. Qh4 {[%clk 0:00:01.2]}
95... Qf3+ {[%clk 0:00:04.5]} 96. Qg3 {[%clk 0:00:02.1]} 96... Qxg3+ {[%clk
0:00:02.7]} 97. Kxg3 {[%clk 0:00:03]} 97... Kg7 {[%clk 0:00:02.8]} 98. f5 {[%clk
0:00:03.1]} 98... e5 {[%clk 0:00:02.6]} 99. Kf3 {[%clk 0:00:02.9]} 99... f6
{[%clk 0:00:02.4]} 100. Kg4 {[%clk 0:00:02.2]} 100... Kf7 {[%clk 0:00:02.7]}
101. Kh5 {[%clk 0:00:02.4]} 101... Ke7 {[%clk 0:00:03.6]} 102. Kg4 {[%clk
0:00:02.5]} 102... Kd6 {[%clk 0:00:04]} 103. Kf3 {[%clk 0:00:02.8]} 103... Kd5
{[%clk 0:00:04.5]} 104. Ke3 {[%clk 0:00:03.3]} 104... e4 {[%clk 0:00:05.1]} 105.
Kf4 {[%clk 0:00:03.7]} 105... Kd4 {[%clk 0:00:05.3]} 106. Kg4 {[%clk 0:00:04.4]}
106... Ke5 {[%clk 0:00:05.7]} 0-1